bitfinex-derivatives/quotes_ETHF0:USTF0_20260203
["timestamp","ask_amount","ask_price","bid_price","bid_amount"]
[1770087584941,13.04523033,2299.7,2298.9,2.54850864]
[1770087585246,13.04523033,2299.7,2299.1,2.33081864]
[1770087585546,2.3324413,2300.1,2299.1,2.33081864]
[1770087585747,13.04523033,2299.9,2299.1,2.33081864]
[1770087586045,13.04523033,2299.7,2299.1,2.33081864]
[1770087586446,13.04523033,2299.5,2299.1,2.33081864]
[1770087586640,13.04523033,2299.8,2299.1,2.33081864]
[1770087586842,13.04523033,2299.6,2299.1,2.33081864]
[1770087587238,13.04523033,2299.5,2299.1,2.33081864]
[1770087587542,13.04523033,2299.6,2299.1,2.33081864]
[1770087587938,13.04523033,2299.5,2299.1,2.33081864]
[1770087588147,13.04523033,2299.6,2299.1,2.33081864]
[1770087588543,13.04523033,2299.5,2299.1,2.33081864]
[1770087588841,13.04523033,2299.6,2299.1,2.33081864]
[1770087589242,13.04523033,2299.5,2299.1,2.33081864]
[1770087589446,13.04523033,2299.6,2299.1,2.33081864]
[1770087589749,13.04523033,2299.4,2298.7,7.93328159]
[1770087590046,2.3324413,2299.7,2298.7,7.93328159]
[1770087590239,13.04523033,2299.6,2298.8,2.33297274]
[1770087590442,13.04523033,2299.5,2298.8,2.33297274]
[1770087590644,2.43210975,2299.5,2298.7,0.00446295]
[1770087590844,13.04523033,2299.0,2298.7,0.00446295]
[1770087591044,13.04523033,2299.1,2298.3,2.55072274]
[1770087591243,13.04523033,2299.0,2298.3,2.55072274]
[1770087591651,13.04523033,2298.9,2298.3,2.55072274]
[1770087591951,13.04523033,2299.0,2298.3,2.55072274]
[1770087592145,13.04523033,2298.9,2298.3,2.55384685]
[1770087592545,2.43210975,2299.7,2298.3,2.55384685]
[1770087592744,2.43210975,2300.1,2298.9,2.33297274]
[1770087593047,0.00547119,2300.2,2299.2,2.33297274]
[1770087593348,2.43758094,2300.2,2299.2,2.33297274]
[1770087593648,13.04523033,2300.0,2299.2,2.33297274]
[1770087593843,13.04523033,2299.8,2299.2,2.33297274]
[1770087594245,13.04523033,2299.5,2298.9,2.55067274]
[1770087594446,13.04098668,2299.6,2298.9,0.2177]
[1770087594645,13.04098668,2299.8,2298.9,2.55067274]
[1770087595044,13.04098668,2299.6,2298.9,2.55067274]
[1770087595243,2.43210975,2299.6,2298.6,2.33297274]
[1770087595550,13.04098668,2299.4,2298.6,4.88497274]
[1770087595749,13.04098668,2299.5,2298.7,2.33297274]
[1770087595949,2.43210975,2299.6,2298.7,2.33297274]
[1770087596250,13.04098668,2299.5,2298.7,2.33297274]
[1770087596450,13.04098668,2299.4,2298.7,2.33297274]
[1770087596753,13.04098668,2299.0,2298.3,0.00312411]
[1770087597049,2.43210975,2299.1,2298.3,0.00312411]
[1770087597349,13.04098668,2299.0,2298.3,2.33609685]
[1770087597549,15.47309643,2299.2,2298.3,0.00312411]
[1770087597748,13.04098668,2299.0,2298.3,0.00312411]
[1770087597945,15.47309643,2298.9,2298.3,0.00312411]
[1770087598348,13.04098668,2298.6,2298.3,0.00312411]
[1770087598551,13.04098668,2298.6,2297.9,4.88497274]
[1770087598748,2.43210975,2298.7,2297.6,2.33297274]
[1770087599249,15.47309643,2298.6,2297.6,2.33297274]
[1770087599451,2.43210975,2298.6,2297.6,2.33791237]
[1770087599644,13.04098668,2298.5,2297.6,2.33791237]
[1770087599844,13.04411758,2298.5,2297.6,2.33791237]
[1770087600247,0.0031309,2298.5,2297.9,2.33297274]
[1770087600449,13.04098668,2298.4,2297.6,2.33791237]
[1770087600648,2.43210975,2299.1,2297.8,2.33297274]
[1770087600951,0.21767,2299.2,2297.6,0.00493963]
[1770087600952,2.43210975,2298.5,2297.6,0.22275963]
[1770087601248,2.43210975,2298.3,2297.6,0.00493963]
[1770087601454,2.43210975,2298.1,2296.9,5.37897274]
[1770087601648,2.43210975,2298.4,2297.0,2.33297274]
[1770087601849,2.43210975,2299.0,2297.6,2.33297274]
[1770087602353,2.43210975,2298.7,2297.6,2.555665]
[1770087602853,15.47309643,2298.7,2297.6,2.555665]
[1770087603249,2.43210975,2298.6,2297.6,2.555665]
[1770087603644,13.04098668,2298.5,2297.6,2.555665]
[1770087603849,13.04098668,2298.4,2297.6,2.555665]
[1770087604247,13.04098668,2298.1,2297.6,0.00487226]
[1770087604453,13.04098668,2297.9,2297.6,0.00487226]
[1770087604655,13.04098668,2297.7,2297.3,2.33297274]
[1770087604855,13.04098668,2297.9,2297.3,2.33297274]
[1770087605155,2.43210975,2298.4,2297.3,2.33297274]
[1770087605351,2.43210975,2298.4,2297.5,2.33297274]
[1770087605656,2.43210975,2298.9,2297.7,2.33297274]
[1770087605858,2.43210975,2298.4,2297.6,0.21782]
[1770087606057,2.43210975,2298.4,2297.7,2.552]
[1770087606257,13.04098668,2298.3,2297.8,2.33297274]
[1770087606458,2.43210975,2298.6,2297.6,0.21782]
[1770087606759,15.47309643,2298.6,2297.6,2.55079274]
[1770087606956,13.04098668,2298.4,2297.6,2.55079274]
[1770087607157,2.43210975,2298.9,2297.6,2.55079274]
[1770087607358,15.47309643,2298.5,2297.6,2.55079274]
[1770087608063,13.04098668,2298.3,2297.6,2.55079274]
[1770087608359,2.43210975,2298.8,2297.8,2.33297274]
[1770087608560,2.43210975,2298.7,2297.8,2.33297274]
[1770087608958,13.04098668,2298.4,2297.8,2.33297274]
[1770087609460,12.59358668,2298.4,2297.8,2.33297274]
[1770087609662,2.43210975,2298.6,2297.9,0.21779]
[1770087610163,12.59358668,2298.4,2297.9,2.55076274]
[1770087610363,12.59358668,2298.3,2297.9,0.21779]
[1770087610863,12.59358668,2298.2,2297.6,2.33297274]
[1770087611055,12.59358668,2298.5,2297.6,2.33297274]
[1770087611256,0.0037167,2299.0,2298.3,0.21775]
[1770087611560,2.43210975,2299.5,2298.6,2.33297274]
[1770087611764,2.43210975,2299.2,2298.5,2.552]
[1770087612061,2.43210975,2299.0,2298.0,2.33297274]
[1770087612264,2.43210975,2298.8,2298.0,2.33297274]
[1770087612563,12.59358668,2298.6,2298.0,2.33297274]
[1770087612862,11.67893148,2298.6,2298.1,2.55074274]
[1770087613056,11.67893148,2298.5,2298.1,2.55074274]
[1770087613460,11.67893148,2298.3,2298.1,2.33297274]
[1770087613665,11.21826148,2298.3,2298.0,2.33297274]
[1770087614060,11.21826148,2298.2,2298.0,2.33297274]
[1770087614270,11.21826148,2298.4,2298.0,2.33297274]
[1770087614765,11.21826148,2298.2,2298.0,2.552]
[1770087614959,11.21826148,2298.3,2298.0,2.552]
[1770087615164,11.21826148,2298.2,2298.0,2.552]
[1770087615467,11.21826148,2298.2,2297.9,2.552]
[1770087615666,10.5645525,2298.2,2297.9,2.552]
[1770087615861,2.43210975,2298.6,2297.9,2.552]
[1770087616057,3.70758684,2298.4,2297.9,2.552]
[1770087616258,2.53783507,2298.3,2297.9,2.552]
[1770087616467,2.5361113,2298.2,2297.9,2.552]
[1770087616963,2.15642684,2298.1,2297.9,2.552]
[1770087617160,2.15642684,2298.3,2297.9,2.552]
[1770087617361,2.5361113,2298.5,2297.9,2.552]
[1770087617558,4.69253814,2298.1,2297.9,2.552]
[1770087617759,2.5361113,2298.1,2297.9,2.552]
[1770087617959,2.15642684,2298.0,2297.9,2.552]
[1770087618869,1.71288684,2298.0,2297.9,2.552]
[1770087619068,2.5361113,2298.3,2297.9,2.552]
[1770087619762,2.53536521,2298.7,2297.9,2.76979]
[1770087619968,0.00330974,2298.8,2297.9,6.42931133]
[1770087620162,2.51284933,2300.0,2298.0,3.87237161]
[1770087620467,2.51284933,2299.9,2298.2,0.21776]
[1770087620664,2.51284933,2300.1,2298.2,0.7302092]
[1770087620866,2.51284933,2300.1,2298.1,6.42437161]
[1770087620867,5.01160875,2300.9,2299.2,0.21767]
[1770087621168,2.51284933,2301.1,2299.4,0.7302092]
[1770087621465,2.51284933,2301.1,2299.5,3.87237161]
[1770087621466,0.00397459,2301.1,2299.5,3.87237161]
[1770087621660,2.49875942,2300.8,2299.4,0.00311759]
[1770087622067,0.22146459,2301.1,2299.4,0.73332679]
[1770087622068,2.5222653,2301.0,2299.4,0.73332679]
[1770087622759,2.5222653,2301.0,2299.5,0.69463156]
[1770087623668,2.5222653,2301.0,2299.5,0.91227156]
[1770087623870,2.5222653,2300.7,2299.4,0.00311759]
[1770087624367,2.5222653,2300.7,2298.5,2.49875942]
[1770087624368,2.5222653,2300.3,2298.8,5.598]
[1770087624669,2.7398353,2300.3,2298.8,3.046]
[1770087625270,2.5222653,2300.3,2298.8,3.70607361]
[1770087625669,2.5222653,2300.3,2298.9,0.2177]
[1770087625869,2.5222653,2300.3,2299.0,0.65475008]
[1770087626270,2.5222653,2300.3,2299.1,0.21768]
[1770087626572,2.5222653,2300.3,2299.2,0.68816982]
[1770087627469,2.5222653,2300.9,2299.4,0.68816982]
[1770087627667,2.5222653,2300.9,2299.0,3.88981466]
[1770087627968,2.5222653,2300.7,2298.9,3.046]
[1770087628169,2.5222653,2300.7,2298.9,5.598]
[1770087628466,2.5222653,2299.9,2298.8,0.00532353]
[1770087628671,2.5222653,2299.7,2298.1,3.045]
[1770087628868,2.5222653,2299.5,2298.1,3.045]
[1770087629070,2.5222653,2299.3,2298.1,3.045]
[1770087629566,2.52586816,2299.3,2298.1,3.04898784]
[1770087630467,2.52586816,2299.3,2298.1,3.72851984]
[1770087630670,2.52586816,2299.3,2298.3,0.21775]
[1770087631665,2.52586816,2299.3,2298.1,0.00398784]
[1770087631869,2.7399453,2299.1,2297.3,3.046]
[1770087632067,2.7399453,2299.1,2297.4,2.552]
[1770087632869,2.5222653,2299.1,2297.5,0.21783]
[1770087633173,2.5222653,2299.1,2297.7,0.67156458]
[1770087633467,0.00360286,2299.3,2298.1,0.67156458]
[1770087633671,0.00360286,2299.3,2298.5,0.21773]
[1770087633872,2.52586816,2299.3,2298.5,3.046]
[1770087634073,0.00360286,2299.3,2298.5,3.26373]
[1770087634267,0.00360286,2299.3,2298.5,3.71756458]
[1770087634468,2.5222653,2299.7,2298.7,0.66080838]
[1770087635073,3.26353,2300.7,2299.1,0.21767]
[1770087635074,2.5222653,2300.0,2299.1,0.21767]
[1770087635272,2.5222653,2300.6,2299.2,5.05075942]
[1770087635476,2.5222653,2300.6,2299.2,5.7115678]
[1770087635774,2.5222653,2300.6,2299.6,0.21763]
[1770087635973,2.52703752,2300.6,2299.6,3.26811082]
[1770087636669,2.52703752,2300.6,2299.6,0.22211082]
[1770087636869,2.52703752,2300.6,2299.6,0.00448082]
[1770087637874,2.52703752,2300.6,2299.6,0.22211082]
[1770087638271,2.52703752,2300.6,2299.6,0.00448082]
[1770087639976,2.52703752,2300.6,2299.2,2.552]
[1770087640276,2.5222653,2300.4,2298.7,2.552]
[1770087641076,2.5222653,2300.4,2298.7,2.55748367]
[1770087641276,2.5222653,2300.4,2298.8,0.21771]
[1770087642374,2.5222653,2299.3,2297.7,0.21781]
[1770087642568,2.5222653,2299.3,2297.2,3.79807138]
[1770087642569,2.7399553,2299.0,2297.2,3.045]
[1770087642773,2.51284933,2299.3,2297.1,0.21786]
[1770087642774,2.5222653,2298.8,2297.1,0.21786]
[1770087642975,2.7399753,2298.8,2297.1,0.21786]
[1770087643169,2.5222653,2298.8,2297.2,0.21786]
[1770087643374,2.52547782,2298.8,2297.3,0.21784]
[1770087643777,2.52547782,2298.8,2297.4,0.21784]
[1770087645480,2.52547782,2298.8,2297.5,0.98877495]
[1770087645986,2.52547782,2298.8,2297.7,0.2178]
[1770087646281,2.52547782,2298.8,2297.8,5.598]
[1770087646879,2.52547782,2298.8,2297.9,0.21779]
[1770087647080,2.52547782,2298.8,2297.8,5.598]
[1770087647580,0.00321252,2298.8,2297.9,0.21778]
[1770087647987,2.5222653,2299.2,2297.8,6.38763072]
[1770087647988,2.5222653,2299.2,2298.1,0.7864182]
[1770087648592,2.5222653,2299.2,2298.0,0.21778]
[1770087649088,2.52667852,2299.2,2297.3,5.598]
[1770087649290,2.52667852,2299.2,2297.5,0.21783]
[1770087649588,2.52667852,2299.2,2297.7,0.78610475]
[1770087649789,2.52667852,2299.2,2297.9,0.21779]
[1770087652992,2.52667852,2299.2,2297.9,0.7900495]
[1770087653293,2.52667852,2299.2,2298.2,0.21776]
[1770087654393,2.52667852,2299.2,2298.3,0.21775]
[1770087655693,2.52667852,2299.2,2297.8,0.2178]
[1770087656590,2.52667852,2299.2,2297.1,3.8940701]
[1770087656894,2.60087664,2298.6,2297.1,0.00425544]
[1770087657089,2.38314664,2298.4,2297.1,0.00425544]
[1770087657295,2.38314664,2297.7,2296.3,3.046]
[1770087658192,2.38314664,2297.7,2296.3,3.05021593]
[1770087660089,2.38314664,2297.7,2296.3,0.00421593]
[1770087660691,2.38314664,2297.7,2296.2,0.21795]
[1770087660692,2.38314664,2297.7,2295.8,2.553]
[1770087661294,2.38314664,2297.7,2295.9,0.83119597]
[1770087661495,2.38314664,2297.7,2296.4,0.21793]
[1770087661690,2.38314664,2297.7,2296.4,0.22117031]
[1770087662094,2.38314664,2297.7,2296.5,0.21792]
[1770087662293,2.38314664,2297.7,2297.0,0.21787]
[1770087662698,2.41984523,2298.0,2297.3,0.21785]
[1770087663298,2.41984523,2299.0,2297.3,0.21785]
[1770087663496,2.41984523,2299.0,2297.8,0.2178]
[1770087663696,2.41984523,2299.0,2297.9,3.047]
[1770087664090,2.41984523,2299.0,2297.9,3.26479]
[1770087664291,2.41984523,2299.0,2297.9,3.047]
[1770087664895,2.41984523,2299.8,2298.6,0.83187139]
[1770087665195,2.41984523,2300.3,2298.9,0.83186817]
[1770087665393,2.41984523,2300.3,2299.0,3.047]
[1770087665697,2.41984523,2300.3,2298.5,3.26473]
[1770087665894,2.41984523,2300.3,2298.5,5.81773]
[1770087666099,2.42514342,2300.3,2298.5,6.65271625]
[1770087666701,2.42514342,2300.3,2298.6,0.21772]
[1770087666997,2.42514342,2300.3,2298.7,0.21771]
[1770087667700,2.64271342,2300.3,2298.5,0.00311808]
[1770087668002,2.41984523,2300.1,2298.5,0.00311808]
[1770087668498,2.41984523,2299.9,2298.5,0.00311808]
[1770087668697,2.41984523,2299.7,2298.5,0.00311808]
[1770087668902,2.41984523,2299.7,2297.8,3.047]
[1770087669700,2.41984523,2299.7,2298.2,0.21776]
[1770087670002,2.41984523,2299.7,2298.3,0.21775]
[1770087670798,2.41984523,2299.7,2298.4,0.21774]
[1770087671198,2.41984523,2299.7,2298.3,0.84245741]
[1770087671404,2.41984523,2299.7,2298.8,0.2177]
[1770087675706,2.41984523,2300.2,2299.0,0.21768]
[1770087676803,2.41984523,2300.2,2298.6,0.86252499]
[1770087677108,2.41984523,2300.2,2299.2,0.21766]
[1770087678009,2.41984523,2300.2,2298.7,0.21771]
[1770087678210,2.41984523,2300.2,2298.8,0.2177]
[1770087679410,2.41984523,2300.2,2298.9,0.2177]
[1770087680002,2.41984523,2300.2,2299.0,0.21769]
[1770087681506,2.41984523,2300.2,2299.1,0.21768]
[1770087681705,2.41984523,2300.2,2299.4,0.21765]
[1770087682710,0.00529819,2300.3,2299.8,0.21761]
[1770087682911,2.483781,2300.6,2299.8,0.21761]
[1770087683616,2.483781,2300.6,2299.9,0.2176]
[1770087683816,2.48685988,2300.6,2299.9,0.22316622]
[1770087685214,2.483781,2301.0,2300.3,0.21756]
[1770087686613,2.48863674,2301.0,2300.3,0.21756]
[1770087689521,0.00485574,2301.0,2300.3,0.21756]
[1770087689917,2.48863674,2301.0,2300.3,0.21756]
[1770087690920,2.48863674,2301.0,2300.2,3.045]
[1770087691319,2.48863674,2301.0,2300.3,0.21756]
[1770087693116,2.48863674,2301.0,2299.9,0.00556622]
[1770087695919,2.48863674,2301.0,2299.5,5.594]
[1770087696822,2.48863674,2301.0,2299.7,0.21762]
[1770087697922,2.48863674,2301.0,2299.8,0.21761]
[1770087698919,2.48863674,2301.0,2300.1,0.21758]
[1770087699224,2.48863674,2301.0,2300.2,0.21757]
[1770087701920,2.48863674,2301.0,2299.8,3.88981466]
[1770087702123,2.48863674,2301.0,2299.8,4.10742466]
[1770087702327,2.48863674,2301.0,2299.8,3.88981466]
[1770087703423,2.48863674,2301.0,2299.7,3.88981466]
[1770087703629,2.48863674,2301.0,2299.6,4.10744466]
[1770087703826,2.48863674,2301.0,2299.7,5.594]
[1770087704325,2.48863674,2301.0,2299.7,9.48381466]
[1770087705427,2.48863674,2301.0,2299.8,0.21761]
[1770087705728,2.48863674,2301.0,2299.9,0.2176]
[1770087713832,2.48863674,2301.0,2299.8,6.43981466]
[1770087713833,2.34668002,2300.9,2299.5,6.66247151]
[1770087714235,2.34668002,2300.9,2299.5,2.77265685]
[1770087714434,2.34668002,2300.9,2299.5,7.46386789]
[1770087714629,2.34668002,2300.9,2299.9,0.2176]
[1770087719037,2.34668002,2300.9,2299.6,3.88981466]
[1770087719241,2.34668002,2300.9,2299.7,2.55]
[1770087720343,2.34668002,2300.8,2299.7,2.55]
[1770087720839,2.34668002,2300.8,2299.5,0.00501685]
[1770087721043,0.22235574,2301.0,2298.4,7.6683568]
[1770087721044,2.34668002,2299.7,2298.4,7.6683568]
[1770087721241,2.34668002,2299.7,2298.2,3.044]
[1770087721538,2.73049933,2299.4,2297.9,2.75772681]
[1770087721742,3.64068192,2299.3,2297.9,2.75772681]
[1770087721944,3.64009933,2299.2,2297.9,2.76259192]
[1770087722143,0.00473675,2299.3,2297.9,2.76259192]
[1770087722340,0.00473675,2299.3,2298.3,2.75768681]
[1770087722647,0.04203082,2299.3,2298.0,2.52128978]
[1770087724143,0.04203082,2299.3,2298.0,2.73906978]
[1770087726452,0.0225434,2299.1,2297.9,0.00486511]
[1770087728249,0.0225434,2299.1,2297.9,2.53353022]
[1770087729343,0.02287298,2299.0,2297.9,2.53353022]
[1770087729546,0.02287298,2299.0,2297.9,0.00486511]
[1770087730250,0.02287298,2299.0,2297.9,2.53336543]
[1770087730551,0.02287298,2299.0,2297.6,2.52756219]
[1770087731549,0.02287298,2299.0,2297.6,2.53298483]
[1770087732643,4.08950813,2299.3,2297.6,2.53298483]
[1770087732644,4.08950813,2299.3,2297.6,0.00542264]
[1770087732848,4.08477138,2298.9,2297.6,0.00542264]
[1770087733050,7.13077138,2298.9,2297.6,0.00542264]
[1770087734052,0.21775,2298.4,2296.9,2.53993681]
[1770087734248,5.97475,2298.4,2296.9,2.53993681]
[1770087734450,0.00137149,2298.2,2296.9,2.53993681]
[1770087734649,0.00137149,2298.2,2296.7,2.552]
[1770087734852,0.00137149,2297.9,2296.6,5.58525107]
[1770087735146,0.00137149,2297.9,2296.6,5.58863266]
[1770087735351,0.00137149,2297.9,2296.7,2.53925107]
[1770087735547,0.00137149,2298.2,2296.7,2.75715107]
[1770087736446,0.00846607,2298.1,2296.7,2.75715107]
[1770087736647,0.00846607,2298.0,2296.7,2.75715107]
[1770087737250,46.57846607,2298.3,2296.9,2.53570378]
[1770087737452,5.77,2298.3,2297.1,2.53570378]
[1770087737947,3.05446607,2298.4,2297.3,2.75355378]
[1770087738152,0.00846607,2298.3,2297.3,2.75355378]
[1770087739452,3.046,2298.4,2297.3,2.75355378]
[1770087739849,3.046,2298.4,2297.5,2.53522118]
[1770087740049,0.08987583,2298.8,2297.5,2.53522118]
[1770087740954,40.88987583,2298.9,2297.5,2.75305118]
[1770087741151,0.08987583,2298.8,2297.5,2.75305118]
[1770087742453,0.08333995,2298.7,2297.5,2.53522118]
[1770087742659,0.08333995,2298.3,2297.1,2.50051367]
[1770087742859,0.08333995,2298.2,2297.1,2.50051367]
[1770087744154,4.08477138,2297.2,2294.6,0.81223681]
[1770087744358,0.05848608,2295.5,2293.9,2.51294061]
[1770087744555,0.05848608,2295.1,2293.5,2.51294061]
[1770087744756,2.553,2295.4,2293.0,0.21825]
[1770087744757,0.05848608,2294.7,2293.0,0.21825]
[1770087744952,5.85148608,2294.7,2293.4,2.51294061]
[1770087745151,0.05848608,2294.6,2293.1,2.51294061]
[1770087745663,0.05848608,2293.8,2291.9,2.51294061]
[1770087745863,0.05848608,2294.2,2292.3,2.51294061]
[1770087746157,0.06191666,2294.7,2292.4,13.20463818]
[1770087746358,0.22153058,2294.7,2292.6,2.54218365]
[1770087746561,2.30084122,2292.0,2289.4,6.47519715]
[1770087746861,2.30084122,2292.2,2290.5,4.08477138]
[1770087747062,2.30084122,2292.6,2291.1,4.08477138]
[1770087747259,2.30084122,2294.2,2290.5,3.048]
[1770087747459,2.30084122,2293.1,2290.7,4.08477138]
[1770087747659,2.30084122,2292.9,2291.2,4.08477138]
[1770087747859,2.30084122,2292.7,2291.2,4.08477138]
[1770087748057,2.30084122,2292.7,2290.8,4.08477138]
[1770087748562,2.30084122,2292.7,2291.2,2.33252657]
[1770087748763,2.30084122,2292.7,2290.5,8.31188891]
[1770087748764,2.30084122,2292.7,2291.3,2.33252657]
[1770087749060,2.30084122,2293.5,2291.7,2.33252657]
[1770087749359,2.30084122,2293.9,2292.4,2.33252657]
[1770087749561,2.30084122,2293.7,2292.4,2.3372742]
[1770087750355,2.30084122,2293.7,2292.4,0.00474763]
[1770087750554,2.30084122,2293.7,2291.6,2.33252657]
[1770087750858,2.20811848,2293.5,2291.6,2.33252657]
[1770087751363,2.20811848,2293.3,2291.6,2.33252657]
[1770087751859,2.20811848,2293.5,2292.2,2.33252657]
[1770087752663,2.20811848,2293.5,2292.2,2.33781181]
[1770087752858,2.20811848,2293.5,2292.2,0.00528524]
[1770087755164,2.20811848,2293.5,2291.1,2.33252657]
[1770087755466,2.20811848,2293.5,2291.5,2.33252657]
[1770087755864,2.20811848,2293.5,2291.7,2.33252657]
[1770087756059,2.20811848,2293.5,2291.7,2.33663413]
[1770087756265,2.20811848,2293.5,2291.8,2.33252657]
[1770087757068,2.20811848,2293.5,2291.8,15.53716475]
[1770087757265,2.30084122,2293.4,2292.0,2.33252657]
[1770087757665,2.30084122,2293.4,2292.4,2.33252657]
[1770087757865,2.30084122,2293.4,2292.1,2.33252657]
[1770087758269,2.30084122,2293.4,2292.2,13.20463818]
[1770087758768,2.30084122,2293.4,2292.1,2.33252657]
[1770087758964,2.30084122,2293.4,2291.8,2.33252657]
[1770087759170,2.30084122,2293.4,2291.9,2.33252657]
[1770087759367,2.30084122,2293.4,2291.7,0.00410756]
[1770087759671,2.30084122,2292.8,2291.3,2.33252657]
[1770087759875,2.30084122,2292.6,2291.0,2.33252657]
[1770087760173,2.51909122,2293.1,2291.5,2.33252657]
[1770087760470,2.30084122,2293.1,2291.7,2.33252657]
[1770087760667,2.30084122,2293.1,2292.1,2.33252657]
[1770087760872,2.30084122,2293.1,2291.7,0.00392174]
[1770087760873,2.30084122,2293.1,2291.7,2.33644831]
[1770087761067,40.8,2293.4,2292.2,2.33252657]
[1770087761265,2.30084122,2293.5,2292.2,2.33252657]
[1770087761572,2.30084122,2293.5,2292.4,2.33252657]
[1770087761767,2.30084122,2293.5,2292.1,2.33252657]
[1770087761968,43.10084122,2293.8,2292.5,2.33252657]
[1770087762174,0.22268291,2294.2,2292.4,13.20463818]
[1770087762175,2.52352413,2294.2,2292.6,2.33252657]
[1770087762476,2.30538413,2294.2,2292.7,2.33252657]
[1770087762876,2.30538413,2294.2,2292.9,15.53716475]
[1770087763171,2.30084122,2294.0,2292.7,2.33252657]
[1770087764175,2.30084122,2294.0,2292.7,15.53716475]
[1770087764677,0.21816,2294.1,2293.0,15.53716475]
[1770087764873,0.21816,2294.1,2293.0,2.33252657]
[1770087765072,0.21816,2294.1,2292.5,13.20463818]
[1770087765073,0.00454291,2294.2,2293.4,2.33252657]
[1770087765374,3.053,2295.1,2293.8,2.33252657]
[1770087765573,2.51888122,2295.3,2293.8,2.33252657]
[1770087765874,2.51888122,2295.3,2294.0,2.33252657]
[1770087766273,2.51888122,2295.3,2293.5,2.33252657]
[1770087766476,2.52445354,2295.3,2293.7,2.33252657]
[1770087766772,2.30084122,2295.1,2294.0,2.33252657]
[1770087767075,2.30084122,2294.9,2293.4,2.33759365]
[1770087767471,2.51894122,2294.7,2293.4,2.33759365]
[1770087767669,0.21811,2294.6,2293.4,2.33759365]
[1770087767874,2.30084122,2294.5,2293.4,0.00506708]
[1770087768376,40.8,2294.4,2293.5,15.53716475]
[1770087768776,40.8,2294.4,2293.6,13.20463818]
[1770087769279,40.8,2294.4,2293.7,13.20463818]
[1770087769476,2.30084122,2294.5,2293.6,13.20463818]
[1770087769877,2.30084122,2294.5,2293.7,13.20463818]
[1770087770176,2.31674834,2295.0,2293.8,15.6096947]
[1770087770376,2.31674834,2295.0,2293.8,2.40505652]
[1770087770575,40.8,2294.9,2293.9,15.55662485]
[1770087770874,2.72528775,2294.8,2293.7,13.20463818]
[1770087771172,2.72528775,2294.8,2293.6,13.20463818]
[1770087771675,2.72528775,2294.8,2293.4,0.00506708]
[1770087771676,2.72532775,2294.4,2293.4,0.00506708]
[1770087772279,2.72532775,2294.4,2293.4,13.20970526]
[1770087772476,2.72532775,2294.4,2293.4,0.00506708]
[1770087772780,2.72532775,2294.4,2293.5,13.20463818]
[1770087772976,2.50719775,2294.0,2293.5,13.20463818]
[1770087773278,2.50719775,2294.0,2292.6,2.35198667]
[1770087773279,2.72536775,2294.0,2292.6,2.35198667]
[1770087773477,2.72536775,2294.0,2292.8,15.05620485]
[1770087773674,2.72536775,2294.0,2292.8,2.35198667]
[1770087773871,2.72536775,2294.0,2293.0,15.05620485]
[1770087774073,2.72536775,2294.0,2293.0,2.35511008]
[1770087774281,2.72536775,2294.0,2293.2,12.70421818]
[1770087774471,2.72536775,2294.0,2293.0,0.00312341]
[1770087774774,2.72536775,2294.0,2293.1,12.70421818]
[1770087775179,3.86971222,2293.9,2293.0,2.35511008]
[1770087775380,2.72536775,2294.0,2293.1,12.70421818]
[1770087775682,6.37573546,2293.9,2293.1,12.70421818]
[1770087775877,2.50601592,2293.9,2293.1,12.70421818]
[1770087776084,2.50601592,2293.9,2293.2,12.70421818]
[1770087776474,2.50601592,2293.9,2293.3,12.70421818]
[1770087776674,2.50601592,2293.9,2293.0,0.00312341]
[1770087776879,0.21819,2293.7,2292.6,2.54637074]
[1770087777075,6.23063418,2293.5,2291.0,2.54637074]
[1770087777374,2.46255252,2292.6,2291.1,2.54637074]
[1770087777774,2.46255252,2292.6,2291.4,11.10253568]
[1770087777775,3.86931898,2292.5,2291.4,11.10253568]
[1770087778073,3.86931898,2292.4,2291.4,11.10253568]
[1770087778381,3.86276105,2292.3,2291.4,2.54637074]
[1770087778574,0.21832,2292.4,2291.4,11.10253568]
[1770087778778,3.86273765,2292.3,2291.4,11.10253568]
[1770087778979,0.21832,2292.4,2291.7,8.55616494]
[1770087779282,0.21832,2292.4,2291.6,2.54637074]
[1770087779476,0.21832,2292.4,2291.8,8.55616494]
[1770087779873,0.21832,2292.4,2291.9,11.10253568]
[1770087780180,0.21832,2292.4,2291.5,11.10253568]
[1770087780576,0.21832,2292.4,2291.6,8.55616494]
[1770087780781,0.21832,2292.4,2291.7,8.55616494]
[1770087781079,5.96274704,2292.6,2291.9,8.10951494]
[1770087781278,6.18104704,2292.6,2291.6,2.54637074]
[1770087781781,6.18104704,2292.6,2291.1,0.00484186]
[1770087781782,0.00474704,2292.6,2292.0,2.54637074]
[1770087781985,0.21826,2293.0,2292.0,2.54637074]
[1770087782175,0.21826,2293.0,2292.2,8.10951494]
[1770087782679,3.86185318,2292.9,2292.0,2.54637074]
[1770087782884,0.00319282,2292.9,2291.9,2.54637074]
[1770087783083,0.21829,2292.7,2291.9,2.54637074]
[1770087783283,0.21829,2292.7,2291.9,6.32088546]
[1770087783483,0.21829,2292.7,2292.0,3.77451472]
[1770087783680,0.00319282,2292.9,2292.3,2.54637074]
[1770087783881,0.00319282,2292.9,2292.2,2.54637074]
[1770087784178,0.00319282,2292.9,2292.3,2.54637074]
[1770087784383,0.00319282,2292.9,2292.7,2.54637074]
[1770087784584,5.95,2293.1,2292.7,2.54637074]
[1770087784784,5.95,2293.1,2292.8,3.77451472]
[1770087785280,0.21824,2293.3,2292.7,2.54637074]
[1770087785486,0.22263482,2293.3,2292.9,6.32088546]
[1770087785686,0.22263482,2293.3,2293.1,3.77451472]
[1770087785986,40.8,2293.4,2292.9,2.54637074]
[1770087786186,0.21823,2293.3,2293.0,2.42855472]
[1770087786485,0.21823,2293.3,2292.9,4.53280546]
[1770087786685,0.21823,2293.3,2293.0,1.44421472]
[1770087786886,0.22390326,2293.3,2293.0,0.46234472]
[1770087787081,0.00567326,2293.3,2292.9,2.54637074]
[1770087787280,0.21827,2292.9,2291.3,0.21842]
[1770087787484,6.20827,2292.9,2291.3,0.21842]
[1770087788283,6.21284269,2292.9,2291.3,0.22317277]
[1770087788485,5.99457269,2292.9,2291.6,0.21839]
[1770087788887,0.00457269,2292.9,2291.6,0.21839]
[1770087789089,6.011,2293.3,2291.8,0.21837]
[1770087789289,41.01822,2293.4,2291.9,2.36700913]
[1770087789589,0.21823,2293.3,2291.9,2.36700913]
[1770087790084,0.22186569,2293.3,2291.9,2.36700913]
[1770087790881,0.00363569,2293.3,2292.2,2.38251323]
[1770087791892,6.022,2293.6,2292.4,2.38069538]
[1770087792185,2.68069252,2294.3,2292.6,2.38069538]
[1770087792491,46.82,2294.2,2292.6,2.38069538]
[1770087792691,0.21817,2293.9,2292.6,2.38069538]
[1770087792990,0.22332235,2293.9,2292.6,2.38069538]